{"text_format":"3","workbook":"xlsx","n_sheets":3,"sheets":["Lịch biểu Hàng ngày","Bộ lập lịch Sự kiện","Khoảng Thời gian"],"not_rendered":{"images":1,"defined_names":21},"read":"whole","date_system":"1900"}

{"sheet":"Lịch biểu Hàng ngày","index":0,"n_rows":75,"n_cols":13,"rows_kept":75,"merged":[[1,1,5,2],[2,12,4,12],[3,7,4,7],[5,12,7,12],[6,1,8,2],[8,12,10,12],[9,7,10,7],[10,1,10,2],[11,12,13,12],[14,12,16,12],[15,7,16,7],[17,12,19,12],[18,1,18,2],[20,12,22,12],[21,7,22,7],[23,12,25,12],[25,1,25,2],[26,7,27,7],[26,12,28,12],[29,12,31,12],[31,7,32,7],[32,12,34,12]]}
[null,"Lịch biểu Hàng ngày"]
[null,{"$f":"IFERROR(DAY(Giá_trị_Ngày),\"\")","v":9},null,null,"Thời_gian",{"$f":"IFERROR(UPPER(TEXT(DATE(Năm_Báo_cáo,Số_Tháng,Ngày_Báo_cáo),\"d mmmm yyyy\")),\"\")","v":"9 SEPTEMBER 2019"},null,"XEM NHANH TUẦN",{"$nulls":3},"GHI CHÚ / DANH SÁCH VIỆC CẦN LÀM"]
[{"$nulls":4},{"$f":"'Khoảng Thời gian'!E3","v":"06:00:00"},{"$f":"IFERROR(INDEX(Bộ_lập_lịch_Sự_kiện[],MATCH(DATEVALUE(Giá_trị_Ngày)&Lịch_biểu_Hàng_ngày[[#This Row],[Thời_gian]],Tra_Cứu_Ngày_Và_Thời_gian,0),3),\"\")","v":"Thức dậy"},null,{"$f":"IFERROR(TEXT(DATEVALUE(Giá_trị_Ngày)+1,\"dddd\"),\"\")","v":"Tuesday"},{"$f":"IFERROR(INDEX(Bộ_lập_lịch_Sự_kiện[],MATCH($H$6&\"|\"&ROW(A1),Bộ_lập_lịch_Sự_kiện[GIÁ TRỊ DUY NHẤT (ĐƯỢC TÍNH TOÁN)],0),2),\"\")","v":"06:30:00"},{"$f":"IFERROR(INDEX(Bộ_lập_lịch_Sự_kiện[],MATCH($H$6&\"|\"&ROW(A1),Bộ_lập_lịch_Sự_kiện[GIÁ TRỊ DUY NHẤT (ĐƯỢC TÍNH TOÁN)],0),3),\"\")","v":"Ăn sáng"},null,null,"Lấy đồ giặt khô"]
[{"$nulls":4},{"$f":"'Khoảng Thời gian'!E4","v":"06:15:00"},{"$f":"IFERROR(INDEX(Bộ_lập_lịch_Sự_kiện[],MATCH(DATEVALUE(Giá_trị_Ngày)&Lịch_biểu_Hàng_ngày[[#This Row],[Thời_gian]],Tra_Cứu_Ngày_Và_Thời_gian,0),3),\"\")","v":""},null,{"$f":"IFERROR(TEXT(DATEVALUE(Giá_trị_Ngày)+1,\"d\"),\"\")","v":"10"},{"$f":"IFERROR(INDEX(Bộ_lập_lịch_Sự_kiện[],MATCH($H$6&\"|\"&ROW(A2),Bộ_lập_lịch_Sự_kiện[GIÁ TRỊ DUY NHẤT (ĐƯỢC TÍNH TOÁN)],0),2),\"\")","v":"07:30:00"},{"$f":"IFERROR(INDEX(Bộ_lập_lịch_Sự_kiện[],MATCH($H$6&\"|\"&ROW(A2),Bộ_lập_lịch_Sự_kiện[GIÁ TRỊ DUY NHẤT (ĐƯỢC TÍNH TOÁN)],0),3),\"\")","v":"Đi làm"}]
[{"$nulls":4},{"$f":"'Khoảng Thời gian'!E5","v":"06:30:00"},{"$f":"IFERROR(INDEX(Bộ_lập_lịch_Sự_kiện[],MATCH(DATEVALUE(Giá_trị_Ngày)&Lịch_biểu_Hàng_ngày[[#This Row],[Thời_gian]],Tra_Cứu_Ngày_Và_Thời_gian,0),3),\"\")","v":"Tắm"},null,null,{"$f":"IFERROR(INDEX(Bộ_lập_lịch_Sự_kiện[],MATCH($H$6&\"|\"&ROW(A3),Bộ_lập_lịch_Sự_kiện[GIÁ TRỊ DUY NHẤT (ĐƯỢC TÍNH TOÁN)],0),2),\"\")","v":""},{"$f":"IFERROR(INDEX(Bộ_lập_lịch_Sự_kiện[],MATCH($H$6&\"|\"&ROW(A3),Bộ_lập_lịch_Sự_kiện[GIÁ TRỊ DUY NHẤT (ĐƯỢC TÍNH TOÁN)],0),3),\"\")","v":""}]
[{"$nulls":4},{"$f":"'Khoảng Thời gian'!E6","v":"06:45:00"},{"$f":"IFERROR(INDEX(Bộ_lập_lịch_Sự_kiện[],MATCH(DATEVALUE(Giá_trị_Ngày)&Lịch_biểu_Hàng_ngày[[#This Row],[Thời_gian]],Tra_Cứu_Ngày_Và_Thời_gian,0),3),\"\")","v":""},null,{"$f":"IFERROR(Giá_trị_Ngày+1,\"\")","v":"2019-09-10"},{"$f":"IFERROR(INDEX(Bộ_lập_lịch_Sự_kiện[],MATCH($H$6&\"|\"&ROW(A4),Bộ_lập_lịch_Sự_kiện[GIÁ TRỊ DUY NHẤT (ĐƯỢC TÍNH TOÁN)],0),2),\"\")","v":""},{"$f":"IFERROR(INDEX(Bộ_lập_lịch_Sự_kiện[],MATCH($H$6&\"|\"&ROW(A4),Bộ_lập_lịch_Sự_kiện[GIÁ TRỊ DUY NHẤT (ĐƯỢC TÍNH TOÁN)],0),3),\"\")","v":""},null,null,"Gọi công ty cáp"]
[null,{"$f":"IFERROR(TEXT(Giá_trị_Ngày_1,\"dddd\"),\"\")","v":"Saturday"},null,null,{"$f":"'Khoảng Thời gian'!E7","v":"07:00:00"},{"$f":"IFERROR(INDEX(Bộ_lập_lịch_Sự_kiện[],MATCH(DATEVALUE(Giá_trị_Ngày)&Lịch_biểu_Hàng_ngày[[#This Row],[Thời_gian]],Tra_Cứu_Ngày_Và_Thời_gian,0),3),\"\")","v":""},null,null,{"$f":"IFERROR(INDEX(Bộ_lập_lịch_Sự_kiện[],MATCH($H$6&\"|\"&ROW(A5),Bộ_lập_lịch_Sự_kiện[GIÁ TRỊ DUY NHẤT (ĐƯỢC TÍNH TOÁN)],0),2),\"\")","v":""},{"$f":"IFERROR(INDEX(Bộ_lập_lịch_Sự_kiện[],MATCH($H$6&\"|\"&ROW(A5),Bộ_lập_lịch_Sự_kiện[GIÁ TRỊ DUY NHẤT (ĐƯỢC TÍNH TOÁN)],0),3),\"\")","v":""}]
[{"$nulls":4},{"$f":"'Khoảng Thời gian'!E8","v":"07:15:00"},{"$f":"IFERROR(INDEX(Bộ_lập_lịch_Sự_kiện[],MATCH(DATEVALUE(Giá_trị_Ngày)&Lịch_biểu_Hàng_ngày[[#This Row],[Thời_gian]],Tra_Cứu_Ngày_Và_Thời_gian,0),3),\"\")","v":""},null,null,{"$f":"IFERROR(INDEX(Bộ_lập_lịch_Sự_kiện[],MATCH($H$6&\"|\"&ROW(A6),Bộ_lập_lịch_Sự_kiện[GIÁ TRỊ DUY NHẤT (ĐƯỢC TÍNH TOÁN)],0),2),\"\")","v":""},{"$f":"IFERROR(INDEX(Bộ_lập_lịch_Sự_kiện[],MATCH($H$6&\"|\"&ROW(A6),Bộ_lập_lịch_Sự_kiện[GIÁ TRỊ DUY NHẤT (ĐƯỢC TÍNH TOÁN)],0),3),\"\")","v":""}]
[{"$nulls":4},{"$f":"'Khoảng Thời gian'!E9","v":"07:30:00"},{"$f":"IFERROR(INDEX(Bộ_lập_lịch_Sự_kiện[],MATCH(DATEVALUE(Giá_trị_Ngày)&Lịch_biểu_Hàng_ngày[[#This Row],[Thời_gian]],Tra_Cứu_Ngày_Và_Thời_gian,0),3),\"\")","v":"Đi làm"},null,{"$f":"IFERROR(TEXT(DATEVALUE(Giá_trị_Ngày)+2,\"dddd\"),\"\")","v":"Wednesday"},{"$f":"IFERROR(INDEX(Bộ_lập_lịch_Sự_kiện[],MATCH($H$12&\"|\"&ROW(A1),Bộ_lập_lịch_Sự_kiện[GIÁ TRỊ DUY NHẤT (ĐƯỢC TÍNH TOÁN)],0),2),\"\")","v":""},{"$f":"IFERROR(INDEX(Bộ_lập_lịch_Sự_kiện[],MATCH($H$12&\"|\"&ROW(A1),Bộ_lập_lịch_Sự_kiện[GIÁ TRỊ DUY NHẤT (ĐƯỢC TÍNH TOÁN)],0),3),\"\")","v":""}]
[{"$nulls":4},{"$f":"'Khoảng Thời gian'!E10","v":"07:45:00"},{"$f":"IFERROR(INDEX(Bộ_lập_lịch_Sự_kiện[],MATCH(DATEVALUE(Giá_trị_Ngày)&Lịch_biểu_Hàng_ngày[[#This Row],[Thời_gian]],Tra_Cứu_Ngày_Và_Thời_gian,0),3),\"\")","v":""},null,{"$f":"IFERROR(TEXT(DATEVALUE(Giá_trị_Ngày)+2,\"d\"),\"\")","v":"11"},{"$f":"IFERROR(INDEX(Bộ_lập_lịch_Sự_kiện[],MATCH($H$12&\"|\"&ROW(A2),Bộ_lập_lịch_Sự_kiện[GIÁ TRỊ DUY NHẤT (ĐƯỢC TÍNH TOÁN)],0),2),\"\")","v":""},{"$f":"IFERROR(INDEX(Bộ_lập_lịch_Sự_kiện[],MATCH($H$12&\"|\"&ROW(A2),Bộ_lập_lịch_Sự_kiện[GIÁ TRỊ DUY NHẤT (ĐƯỢC TÍNH TOÁN)],0),3),\"\")","v":""}]
[null,"XEM LỊCH BIỂU",null,null,{"$f":"'Khoảng Thời gian'!E11","v":"08:00:00"},{"$f":"IFERROR(INDEX(Bộ_lập_lịch_Sự_kiện[],MATCH(DATEVALUE(Giá_trị_Ngày)&Lịch_biểu_Hàng_ngày[[#This Row],[Thời_gian]],Tra_Cứu_Ngày_Và_Thời_gian,0),3),\"\")","v":"Bắt đầu ca"},null,null,{"$f":"IFERROR(INDEX(Bộ_lập_lịch_Sự_kiện[],MATCH($H$12&\"|\"&ROW(A3),Bộ_lập_lịch_Sự_kiện[GIÁ TRỊ DUY NHẤT (ĐƯỢC TÍNH TOÁN)],0),2),\"\")","v":""},{"$f":"IFERROR(INDEX(Bộ_lập_lịch_Sự_kiện[],MATCH($H$12&\"|\"&ROW(A3),Bộ_lập_lịch_Sự_kiện[GIÁ TRỊ DUY NHẤT (ĐƯỢC TÍNH TOÁN)],0),3),\"\")","v":""}]
[{"$nulls":4},{"$f":"'Khoảng Thời gian'!E12","v":"08:15:00"},{"$f":"IFERROR(INDEX(Bộ_lập_lịch_Sự_kiện[],MATCH(DATEVALUE(Giá_trị_Ngày)&Lịch_biểu_Hàng_ngày[[#This Row],[Thời_gian]],Tra_Cứu_Ngày_Và_Thời_gian,0),3),\"\")","v":""},null,{"$f":"IFERROR(Giá_trị_Ngày+2,\"\")","v":"2019-09-11"},{"$f":"IFERROR(INDEX(Bộ_lập_lịch_Sự_kiện[],MATCH($H$12&\"|\"&ROW(A4),Bộ_lập_lịch_Sự_kiện[GIÁ TRỊ DUY NHẤT (ĐƯỢC TÍNH TOÁN)],0),2),\"\")","v":""},{"$f":"IFERROR(INDEX(Bộ_lập_lịch_Sự_kiện[],MATCH($H$12&\"|\"&ROW(A4),Bộ_lập_lịch_Sự_kiện[GIÁ TRỊ DUY NHẤT (ĐƯỢC TÍNH TOÁN)],0),3),\"\")","v":""}]
[null,"Năm",null,null,{"$f":"'Khoảng Thời gian'!E13","v":"08:30:00"},{"$f":"IFERROR(INDEX(Bộ_lập_lịch_Sự_kiện[],MATCH(DATEVALUE(Giá_trị_Ngày)&Lịch_biểu_Hàng_ngày[[#This Row],[Thời_gian]],Tra_Cứu_Ngày_Và_Thời_gian,0),3),\"\")","v":""},null,null,{"$f":"IFERROR(INDEX(Bộ_lập_lịch_Sự_kiện[],MATCH($H$12&\"|\"&ROW(A5),Bộ_lập_lịch_Sự_kiện[GIÁ TRỊ DUY NHẤT (ĐƯỢC TÍNH TOÁN)],0),2),\"\")","v":""},{"$f":"IFERROR(INDEX(Bộ_lập_lịch_Sự_kiện[],MATCH($H$12&\"|\"&ROW(A5),Bộ_lập_lịch_Sự_kiện[GIÁ TRỊ DUY NHẤT (ĐƯỢC TÍNH TOÁN)],0),3),\"\")","v":""}]
[{"$nulls":4},{"$f":"'Khoảng Thời gian'!E14","v":"08:45:00"},{"$f":"IFERROR(INDEX(Bộ_lập_lịch_Sự_kiện[],MATCH(DATEVALUE(Giá_trị_Ngày)&Lịch_biểu_Hàng_ngày[[#This Row],[Thời_gian]],Tra_Cứu_Ngày_Và_Thời_gian,0),3),\"\")","v":""},null,null,{"$f":"IFERROR(INDEX(Bộ_lập_lịch_Sự_kiện[],MATCH($H$12&\"|\"&ROW(A6),Bộ_lập_lịch_Sự_kiện[GIÁ TRỊ DUY NHẤT (ĐƯỢC TÍNH TOÁN)],0),2),\"\")","v":""},{"$f":"IFERROR(INDEX(Bộ_lập_lịch_Sự_kiện[],MATCH($H$12&\"|\"&ROW(A6),Bộ_lập_lịch_Sự_kiện[GIÁ TRỊ DUY NHẤT (ĐƯỢC TÍNH TOÁN)],0),3),\"\")","v":""}]
[null,"Tháng",null,null,{"$f":"'Khoảng Thời gian'!E15","v":"09:00:00"},{"$f":"IFERROR(INDEX(Bộ_lập_lịch_Sự_kiện[],MATCH(DATEVALUE(Giá_trị_Ngày)&Lịch_biểu_Hàng_ngày[[#This Row],[Thời_gian]],Tra_Cứu_Ngày_Và_Thời_gian,0),3),\"\")","v":""},null,{"$f":"IFERROR(TEXT(DATEVALUE(Giá_trị_Ngày)+3,\"dddd\"),\"\")","v":"Thursday"},{"$f":"IFERROR(INDEX(Bộ_lập_lịch_Sự_kiện[],MATCH($H$18&\"|\"&ROW(A1),Bộ_lập_lịch_Sự_kiện[GIÁ TRỊ DUY NHẤT (ĐƯỢC TÍNH TOÁN)],0),2),\"\")","v":""},{"$f":"IFERROR(INDEX(Bộ_lập_lịch_Sự_kiện[],MATCH($H$18&\"|\"&ROW(A1),Bộ_lập_lịch_Sự_kiện[GIÁ TRỊ DUY NHẤT (ĐƯỢC TÍNH TOÁN)],0),3),\"\")","v":""}]
[{"$nulls":4},{"$f":"'Khoảng Thời gian'!E16","v":"09:15:00"},{"$f":"IFERROR(INDEX(Bộ_lập_lịch_Sự_kiện[],MATCH(DATEVALUE(Giá_trị_Ngày)&Lịch_biểu_Hàng_ngày[[#This Row],[Thời_gian]],Tra_Cứu_Ngày_Và_Thời_gian,0),3),\"\")","v":""},null,{"$f":"IFERROR(TEXT(DATEVALUE(Giá_trị_Ngày)+3,\"d\"),\"\")","v":"12"},{"$f":"IFERROR(INDEX(Bộ_lập_lịch_Sự_kiện[],MATCH($H$18&\"|\"&ROW(A2),Bộ_lập_lịch_Sự_kiện[GIÁ TRỊ DUY NHẤT (ĐƯỢC TÍNH TOÁN)],0),2),\"\")","v":""},{"$f":"IFERROR(INDEX(Bộ_lập_lịch_Sự_kiện[],MATCH($H$18&\"|\"&ROW(A2),Bộ_lập_lịch_Sự_kiện[GIÁ TRỊ DUY NHẤT (ĐƯỢC TÍNH TOÁN)],0),3),\"\")","v":""}]
[null,"Ngày",null,null,{"$f":"'Khoảng Thời gian'!E17","v":"09:30:00"},{"$f":"IFERROR(INDEX(Bộ_lập_lịch_Sự_kiện[],MATCH(DATEVALUE(Giá_trị_Ngày)&Lịch_biểu_Hàng_ngày[[#This Row],[Thời_gian]],Tra_Cứu_Ngày_Và_Thời_gian,0),3),\"\")","v":""},null,null,{"$f":"IFERROR(INDEX(Bộ_lập_lịch_Sự_kiện[],MATCH($H$18&\"|\"&ROW(A3),Bộ_lập_lịch_Sự_kiện[GIÁ TRỊ DUY NHẤT (ĐƯỢC TÍNH TOÁN)],0),2),\"\")","v":""},{"$f":"IFERROR(INDEX(Bộ_lập_lịch_Sự_kiện[],MATCH($H$18&\"|\"&ROW(A3),Bộ_lập_lịch_Sự_kiện[GIÁ TRỊ DUY NHẤT (ĐƯỢC TÍNH TOÁN)],0),3),\"\")","v":""}]
[{"$nulls":4},{"$f":"'Khoảng Thời gian'!E18","v":"09:45:00"},{"$f":"IFERROR(INDEX(Bộ_lập_lịch_Sự_kiện[],MATCH(DATEVALUE(Giá_trị_Ngày)&Lịch_biểu_Hàng_ngày[[#This Row],[Thời_gian]],Tra_Cứu_Ngày_Và_Thời_gian,0),3),\"\")","v":""},null,{"$f":"IFERROR(Giá_trị_Ngày+3,\"\")","v":"2019-09-12"},{"$f":"IFERROR(INDEX(Bộ_lập_lịch_Sự_kiện[],MATCH($H$18&\"|\"&ROW(A4),Bộ_lập_lịch_Sự_kiện[GIÁ TRỊ DUY NHẤT (ĐƯỢC TÍNH TOÁN)],0),2),\"\")","v":""},{"$f":"IFERROR(INDEX(Bộ_lập_lịch_Sự_kiện[],MATCH($H$18&\"|\"&ROW(A4),Bộ_lập_lịch_Sự_kiện[GIÁ TRỊ DUY NHẤT (ĐƯỢC TÍNH TOÁN)],0),3),\"\")","v":""}]
[null,"CHỈNH SỬA LỊCH BIỂU",null,null,{"$f":"'Khoảng Thời gian'!E19","v":"10:00:00"},{"$f":"IFERROR(INDEX(Bộ_lập_lịch_Sự_kiện[],MATCH(DATEVALUE(Giá_trị_Ngày)&Lịch_biểu_Hàng_ngày[[#This Row],[Thời_gian]],Tra_Cứu_Ngày_Và_Thời_gian,0),3),\"\")","v":"Nghỉ giải lao"},null,null,{"$f":"IFERROR(INDEX(Bộ_lập_lịch_Sự_kiện[],MATCH($H$18&\"|\"&ROW(A5),Bộ_lập_lịch_Sự_kiện[GIÁ TRỊ DUY NHẤT (ĐƯỢC TÍNH TOÁN)],0),2),\"\")","v":""},{"$f":"IFERROR(INDEX(Bộ_lập_lịch_Sự_kiện[],MATCH($H$18&\"|\"&ROW(A5),Bộ_lập_lịch_Sự_kiện[GIÁ TRỊ DUY NHẤT (ĐƯỢC TÍNH TOÁN)],0),3),\"\")","v":""}]
[{"$nulls":4},{"$f":"'Khoảng Thời gian'!E20","v":"10:15:00"},{"$f":"IFERROR(INDEX(Bộ_lập_lịch_Sự_kiện[],MATCH(DATEVALUE(Giá_trị_Ngày)&Lịch_biểu_Hàng_ngày[[#This Row],[Thời_gian]],Tra_Cứu_Ngày_Và_Thời_gian,0),3),\"\")","v":""},null,null,{"$f":"IFERROR(INDEX(Bộ_lập_lịch_Sự_kiện[],MATCH($H$18&\"|\"&ROW(A6),Bộ_lập_lịch_Sự_kiện[GIÁ TRỊ DUY NHẤT (ĐƯỢC TÍNH TOÁN)],0),2),\"\")","v":""},{"$f":"IFERROR(INDEX(Bộ_lập_lịch_Sự_kiện[],MATCH($H$18&\"|\"&ROW(A6),Bộ_lập_lịch_Sự_kiện[GIÁ TRỊ DUY NHẤT (ĐƯỢC TÍNH TOÁN)],0),3),\"\")","v":""}]
[null,"Chọn chỉnh sửa khoảng thời gian",null,null,{"$f":"'Khoảng Thời gian'!E21","v":"10:30:00"},{"$f":"IFERROR(INDEX(Bộ_lập_lịch_Sự_kiện[],MATCH(DATEVALUE(Giá_trị_Ngày)&Lịch_biểu_Hàng_ngày[[#This Row],[Thời_gian]],Tra_Cứu_Ngày_Và_Thời_gian,0),3),\"\")","v":""},null,{"$f":"IFERROR(TEXT(DATEVALUE(Giá_trị_Ngày)+4,\"dddd\"),\"\")","v":"Friday"},{"$f":"IFERROR(INDEX(Bộ_lập_lịch_Sự_kiện[],MATCH($H$24&\"|\"&ROW(A1),Bộ_lập_lịch_Sự_kiện[GIÁ TRỊ DUY NHẤT (ĐƯỢC TÍNH TOÁN)],0),2),\"\")","v":""},{"$f":"IFERROR(INDEX(Bộ_lập_lịch_Sự_kiện[],MATCH($H$24&\"|\"&ROW(A1),Bộ_lập_lịch_Sự_kiện[GIÁ TRỊ DUY NHẤT (ĐƯỢC TÍNH TOÁN)],0),3),\"\")","v":""}]
[{"$nulls":4},{"$f":"'Khoảng Thời gian'!E22","v":"10:45:00"},{"$f":"IFERROR(INDEX(Bộ_lập_lịch_Sự_kiện[],MATCH(DATEVALUE(Giá_trị_Ngày)&Lịch_biểu_Hàng_ngày[[#This Row],[Thời_gian]],Tra_Cứu_Ngày_Và_Thời_gian,0),3),\"\")","v":""},null,{"$f":"IFERROR(TEXT(DATEVALUE(Giá_trị_Ngày)+4,\"d\"),\"\")","v":"13"},{"$f":"IFERROR(INDEX(Bộ_lập_lịch_Sự_kiện[],MATCH($H$24&\"|\"&ROW(A2),Bộ_lập_lịch_Sự_kiện[GIÁ TRỊ DUY NHẤT (ĐƯỢC TÍNH TOÁN)],0),2),\"\")","v":""},{"$f":"IFERROR(INDEX(Bộ_lập_lịch_Sự_kiện[],MATCH($H$24&\"|\"&ROW(A2),Bộ_lập_lịch_Sự_kiện[GIÁ TRỊ DUY NHẤT (ĐƯỢC TÍNH TOÁN)],0),3),\"\")","v":""}]
[null,"Chọn thêm một sự kiện mới",null,null,{"$f":"'Khoảng Thời gian'!E23","v":"11:00:00"},{"$f":"IFERROR(INDEX(Bộ_lập_lịch_Sự_kiện[],MATCH(DATEVALUE(Giá_trị_Ngày)&Lịch_biểu_Hàng_ngày[[#This Row],[Thời_gian]],Tra_Cứu_Ngày_Và_Thời_gian,0),3),\"\")","v":""},null,null,{"$f":"IFERROR(INDEX(Bộ_lập_lịch_Sự_kiện[],MATCH($H$24&\"|\"&ROW(A3),Bộ_lập_lịch_Sự_kiện[GIÁ TRỊ DUY NHẤT (ĐƯỢC TÍNH TOÁN)],0),2),\"\")","v":""},{"$f":"IFERROR(INDEX(Bộ_lập_lịch_Sự_kiện[],MATCH($H$24&\"|\"&ROW(A3),Bộ_lập_lịch_Sự_kiện[GIÁ TRỊ DUY NHẤT (ĐƯỢC TÍNH TOÁN)],0),3),\"\")","v":""}]
[{"$nulls":4},{"$f":"'Khoảng Thời gian'!E24","v":"11:15:00"},{"$f":"IFERROR(INDEX(Bộ_lập_lịch_Sự_kiện[],MATCH(DATEVALUE(Giá_trị_Ngày)&Lịch_biểu_Hàng_ngày[[#This Row],[Thời_gian]],Tra_Cứu_Ngày_Và_Thời_gian,0),3),\"\")","v":""},null,{"$f":"IFERROR(Giá_trị_Ngày+4,\"\")","v":"2019-09-13"},{"$f":"IFERROR(INDEX(Bộ_lập_lịch_Sự_kiện[],MATCH($H$24&\"|\"&ROW(A4),Bộ_lập_lịch_Sự_kiện[GIÁ TRỊ DUY NHẤT (ĐƯỢC TÍNH TOÁN)],0),2),\"\")","v":""},{"$f":"IFERROR(INDEX(Bộ_lập_lịch_Sự_kiện[],MATCH($H$24&\"|\"&ROW(A4),Bộ_lập_lịch_Sự_kiện[GIÁ TRỊ DUY NHẤT (ĐƯỢC TÍNH TOÁN)],0),3),\"\")","v":""}]
[null,"TÔ SÁNG TRONG LỊCH BIỂU:",null,null,{"$f":"'Khoảng Thời gian'!E25","v":"11:30:00"},{"$f":"IFERROR(INDEX(Bộ_lập_lịch_Sự_kiện[],MATCH(DATEVALUE(Giá_trị_Ngày)&Lịch_biểu_Hàng_ngày[[#This Row],[Thời_gian]],Tra_Cứu_Ngày_Và_Thời_gian,0),3),\"\")","v":""},null,null,{"$f":"IFERROR(INDEX(Bộ_lập_lịch_Sự_kiện[],MATCH($H$24&\"|\"&ROW(A5),Bộ_lập_lịch_Sự_kiện[GIÁ TRỊ DUY NHẤT (ĐƯỢC TÍNH TOÁN)],0),2),\"\")","v":""},{"$f":"IFERROR(INDEX(Bộ_lập_lịch_Sự_kiện[],MATCH($H$24&\"|\"&ROW(A5),Bộ_lập_lịch_Sự_kiện[GIÁ TRỊ DUY NHẤT (ĐƯỢC TÍNH TOÁN)],0),3),\"\")","v":""}]
[null,"Nghỉ giải lao",null,null,{"$f":"'Khoảng Thời gian'!E26","v":"11:45:00"},{"$f":"IFERROR(INDEX(Bộ_lập_lịch_Sự_kiện[],MATCH(DATEVALUE(Giá_trị_Ngày)&Lịch_biểu_Hàng_ngày[[#This Row],[Thời_gian]],Tra_Cứu_Ngày_Và_Thời_gian,0),3),\"\")","v":""},null,{"$f":"IFERROR(TEXT(DATEVALUE(Giá_trị_Ngày)+5,\"dddd\"),\"\")","v":"Saturday"},{"$f":"IFERROR(INDEX(Bộ_lập_lịch_Sự_kiện[],MATCH($H$29&\"|\"&ROW(A1),Bộ_lập_lịch_Sự_kiện[GIÁ TRỊ DUY NHẤT (ĐƯỢC TÍNH TOÁN)],0),2),\"\")","v":""},{"$f":"IFERROR(INDEX(Bộ_lập_lịch_Sự_kiện[],MATCH($H$29&\"|\"&ROW(A1),Bộ_lập_lịch_Sự_kiện[GIÁ TRỊ DUY NHẤT (ĐƯỢC TÍNH TOÁN)],0),3),\"\")","v":""}]
[{"$nulls":4},{"$f":"'Khoảng Thời gian'!E27","v":"12:00:00"},{"$f":"IFERROR(INDEX(Bộ_lập_lịch_Sự_kiện[],MATCH(DATEVALUE(Giá_trị_Ngày)&Lịch_biểu_Hàng_ngày[[#This Row],[Thời_gian]],Tra_Cứu_Ngày_Và_Thời_gian,0),3),\"\")","v":"Ăn trưa"},null,{"$f":"IFERROR(TEXT(DATEVALUE(Giá_trị_Ngày)+5,\"d\"),\"\")","v":"14"},{"$f":"IFERROR(INDEX(Bộ_lập_lịch_Sự_kiện[],MATCH($H$29&\"|\"&ROW(A2),Bộ_lập_lịch_Sự_kiện[GIÁ TRỊ DUY NHẤT (ĐƯỢC TÍNH TOÁN)],0),2),\"\")","v":""},{"$f":"IFERROR(INDEX(Bộ_lập_lịch_Sự_kiện[],MATCH($H$29&\"|\"&ROW(A2),Bộ_lập_lịch_Sự_kiện[GIÁ TRỊ DUY NHẤT (ĐƯỢC TÍNH TOÁN)],0),3),\"\")","v":""}]
[{"$nulls":4},{"$f":"'Khoảng Thời gian'!E28","v":"12:15:00"},{"$f":"IFERROR(INDEX(Bộ_lập_lịch_Sự_kiện[],MATCH(DATEVALUE(Giá_trị_Ngày)&Lịch_biểu_Hàng_ngày[[#This Row],[Thời_gian]],Tra_Cứu_Ngày_Và_Thời_gian,0),3),\"\")","v":""},null,null,{"$f":"IFERROR(INDEX(Bộ_lập_lịch_Sự_kiện[],MATCH($H$29&\"|\"&ROW(A3),Bộ_lập_lịch_Sự_kiện[GIÁ TRỊ DUY NHẤT (ĐƯỢC TÍNH TOÁN)],0),2),\"\")","v":""},{"$f":"IFERROR(INDEX(Bộ_lập_lịch_Sự_kiện[],MATCH($H$29&\"|\"&ROW(A3),Bộ_lập_lịch_Sự_kiện[GIÁ TRỊ DUY NHẤT (ĐƯỢC TÍNH TOÁN)],0),3),\"\")","v":""}]
[{"$nulls":4},{"$f":"'Khoảng Thời gian'!E29","v":"12:30:00"},{"$f":"IFERROR(INDEX(Bộ_lập_lịch_Sự_kiện[],MATCH(DATEVALUE(Giá_trị_Ngày)&Lịch_biểu_Hàng_ngày[[#This Row],[Thời_gian]],Tra_Cứu_Ngày_Và_Thời_gian,0),3),\"\")","v":""},null,{"$f":"IFERROR(Giá_trị_Ngày+5,\"\")","v":"2019-09-14"},{"$f":"IFERROR(INDEX(Bộ_lập_lịch_Sự_kiện[],MATCH($H$29&\"|\"&ROW(A4),Bộ_lập_lịch_Sự_kiện[GIÁ TRỊ DUY NHẤT (ĐƯỢC TÍNH TOÁN)],0),2),\"\")","v":""},{"$f":"IFERROR(INDEX(Bộ_lập_lịch_Sự_kiện[],MATCH($H$29&\"|\"&ROW(A4),Bộ_lập_lịch_Sự_kiện[GIÁ TRỊ DUY NHẤT (ĐƯỢC TÍNH TOÁN)],0),3),\"\")","v":""}]
[{"$nulls":4},{"$f":"'Khoảng Thời gian'!E30","v":"12:45:00"},{"$f":"IFERROR(INDEX(Bộ_lập_lịch_Sự_kiện[],MATCH(DATEVALUE(Giá_trị_Ngày)&Lịch_biểu_Hàng_ngày[[#This Row],[Thời_gian]],Tra_Cứu_Ngày_Và_Thời_gian,0),3),\"\")","v":""},null,null,{"$f":"IFERROR(INDEX(Bộ_lập_lịch_Sự_kiện[],MATCH($H$29&\"|\"&ROW(A5),Bộ_lập_lịch_Sự_kiện[GIÁ TRỊ DUY NHẤT (ĐƯỢC TÍNH TOÁN)],0),2),\"\")","v":""},{"$f":"IFERROR(INDEX(Bộ_lập_lịch_Sự_kiện[],MATCH($H$29&\"|\"&ROW(A5),Bộ_lập_lịch_Sự_kiện[GIÁ TRỊ DUY NHẤT (ĐƯỢC TÍNH TOÁN)],0),3),\"\")","v":""}]
[{"$nulls":4},{"$f":"'Khoảng Thời gian'!E31","v":"13:00:00"},{"$f":"IFERROR(INDEX(Bộ_lập_lịch_Sự_kiện[],MATCH(DATEVALUE(Giá_trị_Ngày)&Lịch_biểu_Hàng_ngày[[#This Row],[Thời_gian]],Tra_Cứu_Ngày_Và_Thời_gian,0),3),\"\")","v":""},null,{"$f":"IFERROR(TEXT(DATEVALUE(Giá_trị_Ngày)+6,\"dddd\"),\"\")","v":"Sunday"},{"$f":"IFERROR(INDEX(Bộ_lập_lịch_Sự_kiện[],MATCH($H$34&\"|\"&ROW(A1),Bộ_lập_lịch_Sự_kiện[GIÁ TRỊ DUY NHẤT (ĐƯỢC TÍNH TOÁN)],0),2),\"\")","v":""},{"$f":"IFERROR(INDEX(Bộ_lập_lịch_Sự_kiện[],MATCH($H$34&\"|\"&ROW(A1),Bộ_lập_lịch_Sự_kiện[GIÁ TRỊ DUY NHẤT (ĐƯỢC TÍNH TOÁN)],0),3),\"\")","v":""}]
[{"$nulls":4},{"$f":"'Khoảng Thời gian'!E32","v":"13:15:00"},{"$f":"IFERROR(INDEX(Bộ_lập_lịch_Sự_kiện[],MATCH(DATEVALUE(Giá_trị_Ngày)&Lịch_biểu_Hàng_ngày[[#This Row],[Thời_gian]],Tra_Cứu_Ngày_Và_Thời_gian,0),3),\"\")","v":""},null,{"$f":"IFERROR(TEXT(DATEVALUE(Giá_trị_Ngày)+6,\"d\"),\"\")","v":"15"},{"$f":"IFERROR(INDEX(Bộ_lập_lịch_Sự_kiện[],MATCH($H$34&\"|\"&ROW(A2),Bộ_lập_lịch_Sự_kiện[GIÁ TRỊ DUY NHẤT (ĐƯỢC TÍNH TOÁN)],0),2),\"\")","v":""},{"$f":"IFERROR(INDEX(Bộ_lập_lịch_Sự_kiện[],MATCH($H$34&\"|\"&ROW(A2),Bộ_lập_lịch_Sự_kiện[GIÁ TRỊ DUY NHẤT (ĐƯỢC TÍNH TOÁN)],0),3),\"\")","v":""}]
[{"$nulls":4},{"$f":"'Khoảng Thời gian'!E33","v":"13:30:00"},{"$f":"IFERROR(INDEX(Bộ_lập_lịch_Sự_kiện[],MATCH(DATEVALUE(Giá_trị_Ngày)&Lịch_biểu_Hàng_ngày[[#This Row],[Thời_gian]],Tra_Cứu_Ngày_Và_Thời_gian,0),3),\"\")","v":"Gọi công ty"},null,null,{"$f":"IFERROR(INDEX(Bộ_lập_lịch_Sự_kiện[],MATCH($H$34&\"|\"&ROW(A3),Bộ_lập_lịch_Sự_kiện[GIÁ TRỊ DUY NHẤT (ĐƯỢC TÍNH TOÁN)],0),2),\"\")","v":""},{"$f":"IFERROR(INDEX(Bộ_lập_lịch_Sự_kiện[],MATCH($H$34&\"|\"&ROW(A3),Bộ_lập_lịch_Sự_kiện[GIÁ TRỊ DUY NHẤT (ĐƯỢC TÍNH TOÁN)],0),3),\"\")","v":""}]
[{"$nulls":4},{"$f":"'Khoảng Thời gian'!E34","v":"13:45:00"},{"$f":"IFERROR(INDEX(Bộ_lập_lịch_Sự_kiện[],MATCH(DATEVALUE(Giá_trị_Ngày)&Lịch_biểu_Hàng_ngày[[#This Row],[Thời_gian]],Tra_Cứu_Ngày_Và_Thời_gian,0),3),\"\")","v":""},null,{"$f":"IFERROR(Giá_trị_Ngày+6,\"\")","v":"2019-09-15"},{"$f":"IFERROR(INDEX(Bộ_lập_lịch_Sự_kiện[],MATCH($H$34&\"|\"&ROW(A4),Bộ_lập_lịch_Sự_kiện[GIÁ TRỊ DUY NHẤT (ĐƯỢC TÍNH TOÁN)],0),2),\"\")","v":""},{"$f":"IFERROR(INDEX(Bộ_lập_lịch_Sự_kiện[],MATCH($H$34&\"|\"&ROW(A4),Bộ_lập_lịch_Sự_kiện[GIÁ TRỊ DUY NHẤT (ĐƯỢC TÍNH TOÁN)],0),3),\"\")","v":""}]
[{"$nulls":4},{"$f":"'Khoảng Thời gian'!E35","v":"14:00:00"},{"$f":"IFERROR(INDEX(Bộ_lập_lịch_Sự_kiện[],MATCH(DATEVALUE(Giá_trị_Ngày)&Lịch_biểu_Hàng_ngày[[#This Row],[Thời_gian]],Tra_Cứu_Ngày_Và_Thời_gian,0),3),\"\")","v":""},null,null,{"$f":"IFERROR(INDEX(Bộ_lập_lịch_Sự_kiện[],MATCH($H$34&\"|\"&ROW(A5),Bộ_lập_lịch_Sự_kiện[GIÁ TRỊ DUY NHẤT (ĐƯỢC TÍNH TOÁN)],0),2),\"\")","v":""},{"$f":"IFERROR(INDEX(Bộ_lập_lịch_Sự_kiện[],MATCH($H$34&\"|\"&ROW(A5),Bộ_lập_lịch_Sự_kiện[GIÁ TRỊ DUY NHẤT (ĐƯỢC TÍNH TOÁN)],0),3),\"\")","v":""}]
[{"$nulls":4},{"$f":"'Khoảng Thời gian'!E36","v":"14:15:00"},{"$f":"IFERROR(INDEX(Bộ_lập_lịch_Sự_kiện[],MATCH(DATEVALUE(Giá_trị_Ngày)&Lịch_biểu_Hàng_ngày[[#This Row],[Thời_gian]],Tra_Cứu_Ngày_Và_Thời_gian,0),3),\"\")","v":""}]
[{"$nulls":4},{"$f":"'Khoảng Thời gian'!E37","v":"14:30:00"},{"$f":"IFERROR(INDEX(Bộ_lập_lịch_Sự_kiện[],MATCH(DATEVALUE(Giá_trị_Ngày)&Lịch_biểu_Hàng_ngày[[#This Row],[Thời_gian]],Tra_Cứu_Ngày_Và_Thời_gian,0),3),\"\")","v":""}]
[{"$nulls":4},{"$f":"'Khoảng Thời gian'!E38","v":"14:45:00"},{"$f":"IFERROR(INDEX(Bộ_lập_lịch_Sự_kiện[],MATCH(DATEVALUE(Giá_trị_Ngày)&Lịch_biểu_Hàng_ngày[[#This Row],[Thời_gian]],Tra_Cứu_Ngày_Và_Thời_gian,0),3),\"\")","v":""}]
[{"$nulls":4},{"$f":"'Khoảng Thời gian'!E39","v":"15:00:00"},{"$f":"IFERROR(INDEX(Bộ_lập_lịch_Sự_kiện[],MATCH(DATEVALUE(Giá_trị_Ngày)&Lịch_biểu_Hàng_ngày[[#This Row],[Thời_gian]],Tra_Cứu_Ngày_Và_Thời_gian,0),3),\"\")","v":"Nghỉ giải lao"}]
[{"$nulls":4},{"$f":"'Khoảng Thời gian'!E40","v":"15:15:00"},{"$f":"IFERROR(INDEX(Bộ_lập_lịch_Sự_kiện[],MATCH(DATEVALUE(Giá_trị_Ngày)&Lịch_biểu_Hàng_ngày[[#This Row],[Thời_gian]],Tra_Cứu_Ngày_Và_Thời_gian,0),3),\"\")","v":""}]
[{"$nulls":4},{"$f":"'Khoảng Thời gian'!E41","v":"15:30:00"},{"$f":"IFERROR(INDEX(Bộ_lập_lịch_Sự_kiện[],MATCH(DATEVALUE(Giá_trị_Ngày)&Lịch_biểu_Hàng_ngày[[#This Row],[Thời_gian]],Tra_Cứu_Ngày_Và_Thời_gian,0),3),\"\")","v":""}]
[{"$nulls":4},{"$f":"'Khoảng Thời gian'!E42","v":"15:45:00"},{"$f":"IFERROR(INDEX(Bộ_lập_lịch_Sự_kiện[],MATCH(DATEVALUE(Giá_trị_Ngày)&Lịch_biểu_Hàng_ngày[[#This Row],[Thời_gian]],Tra_Cứu_Ngày_Và_Thời_gian,0),3),\"\")","v":""}]
[{"$nulls":4},{"$f":"'Khoảng Thời gian'!E43","v":"16:00:00"},{"$f":"IFERROR(INDEX(Bộ_lập_lịch_Sự_kiện[],MATCH(DATEVALUE(Giá_trị_Ngày)&Lịch_biểu_Hàng_ngày[[#This Row],[Thời_gian]],Tra_Cứu_Ngày_Và_Thời_gian,0),3),\"\")","v":""}]
[{"$nulls":4},{"$f":"'Khoảng Thời gian'!E44","v":"16:15:00"},{"$f":"IFERROR(INDEX(Bộ_lập_lịch_Sự_kiện[],MATCH(DATEVALUE(Giá_trị_Ngày)&Lịch_biểu_Hàng_ngày[[#This Row],[Thời_gian]],Tra_Cứu_Ngày_Và_Thời_gian,0),3),\"\")","v":""}]
[{"$nulls":4},{"$f":"'Khoảng Thời gian'!E45","v":"16:30:00"},{"$f":"IFERROR(INDEX(Bộ_lập_lịch_Sự_kiện[],MATCH(DATEVALUE(Giá_trị_Ngày)&Lịch_biểu_Hàng_ngày[[#This Row],[Thời_gian]],Tra_Cứu_Ngày_Và_Thời_gian,0),3),\"\")","v":""}]
[{"$nulls":4},{"$f":"'Khoảng Thời gian'!E46","v":"16:45:00"},{"$f":"IFERROR(INDEX(Bộ_lập_lịch_Sự_kiện[],MATCH(DATEVALUE(Giá_trị_Ngày)&Lịch_biểu_Hàng_ngày[[#This Row],[Thời_gian]],Tra_Cứu_Ngày_Và_Thời_gian,0),3),\"\")","v":""}]
[{"$nulls":4},{"$f":"'Khoảng Thời gian'!E47","v":"17:00:00"},{"$f":"IFERROR(INDEX(Bộ_lập_lịch_Sự_kiện[],MATCH(DATEVALUE(Giá_trị_Ngày)&Lịch_biểu_Hàng_ngày[[#This Row],[Thời_gian]],Tra_Cứu_Ngày_Và_Thời_gian,0),3),\"\")","v":"Về nhà"}]
[{"$nulls":4},{"$f":"'Khoảng Thời gian'!E48","v":"17:15:00"},{"$f":"IFERROR(INDEX(Bộ_lập_lịch_Sự_kiện[],MATCH(DATEVALUE(Giá_trị_Ngày)&Lịch_biểu_Hàng_ngày[[#This Row],[Thời_gian]],Tra_Cứu_Ngày_Và_Thời_gian,0),3),\"\")","v":""}]
[{"$nulls":4},{"$f":"'Khoảng Thời gian'!E49","v":"17:30:00"},{"$f":"IFERROR(INDEX(Bộ_lập_lịch_Sự_kiện[],MATCH(DATEVALUE(Giá_trị_Ngày)&Lịch_biểu_Hàng_ngày[[#This Row],[Thời_gian]],Tra_Cứu_Ngày_Và_Thời_gian,0),3),\"\")","v":""}]
[{"$nulls":4},{"$f":"'Khoảng Thời gian'!E50","v":"17:45:00"},{"$f":"IFERROR(INDEX(Bộ_lập_lịch_Sự_kiện[],MATCH(DATEVALUE(Giá_trị_Ngày)&Lịch_biểu_Hàng_ngày[[#This Row],[Thời_gian]],Tra_Cứu_Ngày_Và_Thời_gian,0),3),\"\")","v":""}]
[{"$nulls":4},{"$f":"'Khoảng Thời gian'!E51","v":"18:00:00"},{"$f":"IFERROR(INDEX(Bộ_lập_lịch_Sự_kiện[],MATCH(DATEVALUE(Giá_trị_Ngày)&Lịch_biểu_Hàng_ngày[[#This Row],[Thời_gian]],Tra_Cứu_Ngày_Và_Thời_gian,0),3),\"\")","v":"Chơi bóng đá"}]
[{"$nulls":4},{"$f":"'Khoảng Thời gian'!E52","v":"18:15:00"},{"$f":"IFERROR(INDEX(Bộ_lập_lịch_Sự_kiện[],MATCH(DATEVALUE(Giá_trị_Ngày)&Lịch_biểu_Hàng_ngày[[#This Row],[Thời_gian]],Tra_Cứu_Ngày_Và_Thời_gian,0),3),\"\")","v":""}]
[{"$nulls":4},{"$f":"'Khoảng Thời gian'!E53","v":"18:30:00"},{"$f":"IFERROR(INDEX(Bộ_lập_lịch_Sự_kiện[],MATCH(DATEVALUE(Giá_trị_Ngày)&Lịch_biểu_Hàng_ngày[[#This Row],[Thời_gian]],Tra_Cứu_Ngày_Và_Thời_gian,0),3),\"\")","v":""}]
[{"$nulls":4},{"$f":"'Khoảng Thời gian'!E54","v":"18:45:00"},{"$f":"IFERROR(INDEX(Bộ_lập_lịch_Sự_kiện[],MATCH(DATEVALUE(Giá_trị_Ngày)&Lịch_biểu_Hàng_ngày[[#This Row],[Thời_gian]],Tra_Cứu_Ngày_Và_Thời_gian,0),3),\"\")","v":""}]
[{"$nulls":4},{"$f":"'Khoảng Thời gian'!E55","v":"19:00:00"},{"$f":"IFERROR(INDEX(Bộ_lập_lịch_Sự_kiện[],MATCH(DATEVALUE(Giá_trị_Ngày)&Lịch_biểu_Hàng_ngày[[#This Row],[Thời_gian]],Tra_Cứu_Ngày_Và_Thời_gian,0),3),\"\")","v":""}]
[{"$nulls":4},{"$f":"'Khoảng Thời gian'!E56","v":"19:15:00"},{"$f":"IFERROR(INDEX(Bộ_lập_lịch_Sự_kiện[],MATCH(DATEVALUE(Giá_trị_Ngày)&Lịch_biểu_Hàng_ngày[[#This Row],[Thời_gian]],Tra_Cứu_Ngày_Và_Thời_gian,0),3),\"\")","v":""}]
[{"$nulls":4},{"$f":"'Khoảng Thời gian'!E57","v":"19:30:00"},{"$f":"IFERROR(INDEX(Bộ_lập_lịch_Sự_kiện[],MATCH(DATEVALUE(Giá_trị_Ngày)&Lịch_biểu_Hàng_ngày[[#This Row],[Thời_gian]],Tra_Cứu_Ngày_Và_Thời_gian,0),3),\"\")","v":""}]
[{"$nulls":4},{"$f":"'Khoảng Thời gian'!E58","v":"19:45:00"},{"$f":"IFERROR(INDEX(Bộ_lập_lịch_Sự_kiện[],MATCH(DATEVALUE(Giá_trị_Ngày)&Lịch_biểu_Hàng_ngày[[#This Row],[Thời_gian]],Tra_Cứu_Ngày_Và_Thời_gian,0),3),\"\")","v":""}]
[{"$nulls":4},{"$f":"'Khoảng Thời gian'!E59","v":"20:00:00"},{"$f":"IFERROR(INDEX(Bộ_lập_lịch_Sự_kiện[],MATCH(DATEVALUE(Giá_trị_Ngày)&Lịch_biểu_Hàng_ngày[[#This Row],[Thời_gian]],Tra_Cứu_Ngày_Và_Thời_gian,0),3),\"\")","v":""}]
[{"$nulls":4},{"$f":"'Khoảng Thời gian'!E60","v":"20:15:00"},{"$f":"IFERROR(INDEX(Bộ_lập_lịch_Sự_kiện[],MATCH(DATEVALUE(Giá_trị_Ngày)&Lịch_biểu_Hàng_ngày[[#This Row],[Thời_gian]],Tra_Cứu_Ngày_Và_Thời_gian,0),3),\"\")","v":""}]
[{"$nulls":4},{"$f":"'Khoảng Thời gian'!E61","v":"20:30:00"},{"$f":"IFERROR(INDEX(Bộ_lập_lịch_Sự_kiện[],MATCH(DATEVALUE(Giá_trị_Ngày)&Lịch_biểu_Hàng_ngày[[#This Row],[Thời_gian]],Tra_Cứu_Ngày_Và_Thời_gian,0),3),\"\")","v":""}]
[{"$nulls":4},{"$f":"'Khoảng Thời gian'!E62","v":"20:45:00"},{"$f":"IFERROR(INDEX(Bộ_lập_lịch_Sự_kiện[],MATCH(DATEVALUE(Giá_trị_Ngày)&Lịch_biểu_Hàng_ngày[[#This Row],[Thời_gian]],Tra_Cứu_Ngày_Và_Thời_gian,0),3),\"\")","v":""}]
[{"$nulls":4},{"$f":"'Khoảng Thời gian'!E63","v":"21:00:00"},{"$f":"IFERROR(INDEX(Bộ_lập_lịch_Sự_kiện[],MATCH(DATEVALUE(Giá_trị_Ngày)&Lịch_biểu_Hàng_ngày[[#This Row],[Thời_gian]],Tra_Cứu_Ngày_Và_Thời_gian,0),3),\"\")","v":""}]
[{"$nulls":4},{"$f":"'Khoảng Thời gian'!E64","v":""},{"$f":"IFERROR(INDEX(Bộ_lập_lịch_Sự_kiện[],MATCH(DATEVALUE(Giá_trị_Ngày)&Lịch_biểu_Hàng_ngày[[#This Row],[Thời_gian]],Tra_Cứu_Ngày_Và_Thời_gian,0),3),\"\")","v":""}]
[{"$nulls":4},{"$f":"'Khoảng Thời gian'!E65","v":""},{"$f":"IFERROR(INDEX(Bộ_lập_lịch_Sự_kiện[],MATCH(DATEVALUE(Giá_trị_Ngày)&Lịch_biểu_Hàng_ngày[[#This Row],[Thời_gian]],Tra_Cứu_Ngày_Và_Thời_gian,0),3),\"\")","v":""}]
[{"$nulls":4},{"$f":"'Khoảng Thời gian'!E66","v":""},{"$f":"IFERROR(INDEX(Bộ_lập_lịch_Sự_kiện[],MATCH(DATEVALUE(Giá_trị_Ngày)&Lịch_biểu_Hàng_ngày[[#This Row],[Thời_gian]],Tra_Cứu_Ngày_Và_Thời_gian,0),3),\"\")","v":""}]
[{"$nulls":4},{"$f":"'Khoảng Thời gian'!E67","v":""},{"$f":"IFERROR(INDEX(Bộ_lập_lịch_Sự_kiện[],MATCH(DATEVALUE(Giá_trị_Ngày)&Lịch_biểu_Hàng_ngày[[#This Row],[Thời_gian]],Tra_Cứu_Ngày_Và_Thời_gian,0),3),\"\")","v":""}]
[{"$nulls":4},{"$f":"'Khoảng Thời gian'!E68","v":""},{"$f":"IFERROR(INDEX(Bộ_lập_lịch_Sự_kiện[],MATCH(DATEVALUE(Giá_trị_Ngày)&Lịch_biểu_Hàng_ngày[[#This Row],[Thời_gian]],Tra_Cứu_Ngày_Và_Thời_gian,0),3),\"\")","v":""}]
[{"$nulls":4},{"$f":"'Khoảng Thời gian'!E69","v":""},{"$f":"IFERROR(INDEX(Bộ_lập_lịch_Sự_kiện[],MATCH(DATEVALUE(Giá_trị_Ngày)&Lịch_biểu_Hàng_ngày[[#This Row],[Thời_gian]],Tra_Cứu_Ngày_Và_Thời_gian,0),3),\"\")","v":""}]
[{"$nulls":4},{"$f":"'Khoảng Thời gian'!E70","v":""},{"$f":"IFERROR(INDEX(Bộ_lập_lịch_Sự_kiện[],MATCH(DATEVALUE(Giá_trị_Ngày)&Lịch_biểu_Hàng_ngày[[#This Row],[Thời_gian]],Tra_Cứu_Ngày_Và_Thời_gian,0),3),\"\")","v":""}]
[{"$nulls":4},{"$f":"'Khoảng Thời gian'!E71","v":""},{"$f":"IFERROR(INDEX(Bộ_lập_lịch_Sự_kiện[],MATCH(DATEVALUE(Giá_trị_Ngày)&Lịch_biểu_Hàng_ngày[[#This Row],[Thời_gian]],Tra_Cứu_Ngày_Và_Thời_gian,0),3),\"\")","v":""}]
[{"$nulls":4},{"$f":"'Khoảng Thời gian'!E72","v":""},{"$f":"IFERROR(INDEX(Bộ_lập_lịch_Sự_kiện[],MATCH(DATEVALUE(Giá_trị_Ngày)&Lịch_biểu_Hàng_ngày[[#This Row],[Thời_gian]],Tra_Cứu_Ngày_Và_Thời_gian,0),3),\"\")","v":""}]
[{"$nulls":4},{"$f":"'Khoảng Thời gian'!E73","v":""},{"$f":"IFERROR(INDEX(Bộ_lập_lịch_Sự_kiện[],MATCH(DATEVALUE(Giá_trị_Ngày)&Lịch_biểu_Hàng_ngày[[#This Row],[Thời_gian]],Tra_Cứu_Ngày_Và_Thời_gian,0),3),\"\")","v":""}]
[{"$nulls":4},{"$f":"'Khoảng Thời gian'!E74","v":""},{"$f":"IFERROR(INDEX(Bộ_lập_lịch_Sự_kiện[],MATCH(DATEVALUE(Giá_trị_Ngày)&Lịch_biểu_Hàng_ngày[[#This Row],[Thời_gian]],Tra_Cứu_Ngày_Và_Thời_gian,0),3),\"\")","v":""}]
[{"$nulls":4},{"$f":"'Khoảng Thời gian'!E75","v":""},{"$f":"IFERROR(INDEX(Bộ_lập_lịch_Sự_kiện[],MATCH(DATEVALUE(Giá_trị_Ngày)&Lịch_biểu_Hàng_ngày[[#This Row],[Thời_gian]],Tra_Cứu_Ngày_Và_Thời_gian,0),3),\"\")","v":""}]

{"sheet":"Bộ lập lịch Sự kiện","index":1,"n_rows":15,"n_cols":8,"rows_kept":15,"merged":[[1,1,4,2],[5,1,6,2],[7,1,7,2]]}
[null,"Bộ lập lịch Sự kiện"]
[null,{"$f":"DAY(Giá_trị_Ngày)","v":9},null,null,"NGÀY","THỜI GIAN","MÔ TẢ","GIÁ TRỊ DUY NHẤT (ĐƯỢC TÍNH TOÁN)"]
[{"$nulls":4},{"$f":"TODAY()","v":"2019-09-09"},"06:00:00","Thức dậy",{"$f":"Bộ_lập_lịch_Sự_kiện[[#This Row],[NGÀY]]&\"|\"&COUNTIF($E$3:E3,E3)","v":"43717|1"}]
[{"$nulls":4},{"$f":"TODAY()","v":"2019-09-09"},"06:30:00","Tắm",{"$f":"Bộ_lập_lịch_Sự_kiện[[#This Row],[NGÀY]]&\"|\"&COUNTIF($E$3:E4,E4)","v":"43717|2"}]
[{"$nulls":4},"2019-09-09","07:30:00","Đi làm",{"$f":"Bộ_lập_lịch_Sự_kiện[[#This Row],[NGÀY]]&\"|\"&COUNTIF($E$3:E5,E5)","v":"43717|3"}]
[null,{"$f":"TEXT(Giá_trị_Ngày_1,\"dddd\")","v":"Saturday"},null,null,"2019-09-09","08:00:00","Bắt đầu ca",{"$f":"Bộ_lập_lịch_Sự_kiện[[#This Row],[NGÀY]]&\"|\"&COUNTIF($E$3:E6,E6)","v":"43717|4"}]
[{"$nulls":4},"2019-09-09","10:00:00","Nghỉ giải lao",{"$f":"Bộ_lập_lịch_Sự_kiện[[#This Row],[NGÀY]]&\"|\"&COUNTIF($E$3:E7,E7)","v":"43717|5"}]
[null,{"$f":"Giá_trị_Ngày","v":"9 SEPTEMBER 2019"},null,null,"2019-09-09","12:00:00","Ăn trưa",{"$f":"Bộ_lập_lịch_Sự_kiện[[#This Row],[NGÀY]]&\"|\"&COUNTIF($E$3:E8,E8)","v":"43717|6"}]
[{"$nulls":4},"2019-09-09","13:00:00","Quay lại làm việc",{"$f":"Bộ_lập_lịch_Sự_kiện[[#This Row],[NGÀY]]&\"|\"&COUNTIF($E$3:E9,E9)","v":"43717|7"}]
[null,"Chọn chỉnh sửa khoảng thời gian",null,null,"2019-09-09","13:30:00","Gọi công ty",{"$f":"Bộ_lập_lịch_Sự_kiện[[#This Row],[NGÀY]]&\"|\"&COUNTIF($E$3:E10,E10)","v":"43717|8"}]
[{"$nulls":4},"2019-09-09","15:00:00","Nghỉ giải lao",{"$f":"Bộ_lập_lịch_Sự_kiện[[#This Row],[NGÀY]]&\"|\"&COUNTIF($E$3:E11,E11)","v":"43717|9"}]
[null,"Chọn xem Lịch biểu Hàng ngày",null,null,"2019-09-09","17:00:00","Về nhà",{"$f":"Bộ_lập_lịch_Sự_kiện[[#This Row],[NGÀY]]&\"|\"&COUNTIF($E$3:E12,E12)","v":"43717|10"}]
[{"$nulls":4},"2019-09-09","18:00:00","Chơi bóng đá",{"$f":"Bộ_lập_lịch_Sự_kiện[[#This Row],[NGÀY]]&\"|\"&COUNTIF($E$3:E13,E13)","v":"43717|11"}]
[{"$nulls":4},{"$f":"TODAY()+1","v":"2019-09-10"},"06:30:00","Ăn sáng",{"$f":"Bộ_lập_lịch_Sự_kiện[[#This Row],[NGÀY]]&\"|\"&COUNTIF($E$3:E14,E14)","v":"43718|1"}]
[{"$nulls":4},{"$f":"TODAY()+1","v":"2019-09-10"},"07:30:00","Đi làm",{"$f":"Bộ_lập_lịch_Sự_kiện[[#This Row],[NGÀY]]&\"|\"&COUNTIF($E$3:E15,E15)","v":"43718|2"}]

{"sheet":"Khoảng Thời gian","index":2,"n_rows":75,"n_cols":5,"rows_kept":75,"merged":[[1,1,1,2],[9,1,9,2]]}
[null,"Khoảng Thời gian"]
[null,"CHỈNH SỬA BẢNG THỜI GIAN",null,null,"Thời gian"]
[{"$nulls":4},{"$f":"Thời_gian_bắt_đầu","v":"06:00:00"}]
[null,"Thời gian Bắt đầu","06:00:00",null,{"$f":"IFERROR(IF($E3+Tăng_dần>Thời_gian_Kết_thúc,\"\",$E3+Tăng_dần),\"\")","v":"06:15:00"}]
[{"$nulls":4},"06:30:00"]
[null,"Khoảng","15 PHÚT",null,"06:45:00"]
[{"$nulls":4},"07:00:00"]
[null,"Thời gian kết thúc","21:00:00",null,"07:15:00"]
[{"$nulls":4},"07:30:00"]
[null,"XEM LỊCH BIỂU",null,null,"07:45:00"]
[{"$nulls":4},"08:00:00"]
[null,"Chọn Xem Lịch biểu Hàng ngày",null,null,"08:15:00"]
[{"$nulls":4},"08:30:00"]
[null,"Chọn thêm một sự kiện mới",null,null,"08:45:00"]
[{"$nulls":4},"09:00:00"]
[{"$nulls":4},"09:15:00"]
[{"$nulls":4},"09:30:00"]
[{"$nulls":4},"09:45:00"]
[{"$nulls":4},"10:00:00"]
[{"$nulls":4},"10:15:00"]
[{"$nulls":4},"10:30:00"]
[{"$nulls":4},"10:45:00"]
[{"$nulls":4},"11:00:00"]
[{"$nulls":4},"11:15:00"]
[{"$nulls":4},"11:30:00"]
[{"$nulls":4},"11:45:00"]
[{"$nulls":4},"12:00:00"]
[{"$nulls":4},"12:15:00"]
[{"$nulls":4},"12:30:00"]
[{"$nulls":4},"12:45:00"]
[{"$nulls":4},"13:00:00"]
[{"$nulls":4},"13:15:00"]
[{"$nulls":4},"13:30:00"]
[{"$nulls":4},"13:45:00"]
[{"$nulls":4},"14:00:00"]
[{"$nulls":4},{"$f":"IFERROR(IF($E35+Tăng_dần>Thời_gian_Kết_thúc,\"\",$E35+Tăng_dần),\"\")","v":"14:15:00"}]
[{"$nulls":4},"14:30:00"]
[{"$nulls":4},"14:45:00"]
[{"$nulls":4},"15:00:00"]
[{"$nulls":4},"15:15:00"]
[{"$nulls":4},"15:30:00"]
[{"$nulls":4},"15:45:00"]
[{"$nulls":4},"16:00:00"]
[{"$nulls":4},"16:15:00"]
[{"$nulls":4},"16:30:00"]
[{"$nulls":4},"16:45:00"]
[{"$nulls":4},"17:00:00"]
[{"$nulls":4},"17:15:00"]
[{"$nulls":4},"17:30:00"]
[{"$nulls":4},"17:45:00"]
[{"$nulls":4},"18:00:00"]
[{"$nulls":4},"18:15:00"]
[{"$nulls":4},"18:30:00"]
[{"$nulls":4},"18:45:00"]
[{"$nulls":4},"19:00:00"]
[{"$nulls":4},"19:15:00"]
[{"$nulls":4},"19:30:00"]
[{"$nulls":4},"19:45:00"]
[{"$nulls":4},"20:00:00"]
[{"$nulls":4},"20:15:00"]
[{"$nulls":4},"20:30:00"]
[{"$nulls":4},"20:45:00"]
[{"$nulls":4},"21:00:00"]
[{"$nulls":4},""]
[{"$nulls":4},""]
[{"$nulls":4},""]
[{"$nulls":4},""]
[{"$nulls":4},{"$f":"IFERROR(IF($E67+Tăng_dần>Thời_gian_Kết_thúc,\"\",$E67+Tăng_dần),\"\")","v":""}]
[{"$nulls":4},""]
[{"$nulls":4},""]
[{"$nulls":4},""]
[{"$nulls":4},""]
[{"$nulls":4},""]
[{"$nulls":4},""]
[{"$nulls":4},""]